[Event "Live Chess"]
[Site "Chess.com"]
[Date "2011.01.31"]
[Round "-"]
[White "inthetrees"]
[Black "hipposcottimus"]
[Result "1-0"]
[CurrentPosition "rn2k2r/pp2nppp/2p1p3/3P4/8/P1N1q3/1PP1QPPP/R1B2RK1 w kq -"]
[Timezone "UTC"]
[ECO "D00"]
[ECOUrl "https://www.chess.com/openings/Queens-Pawn-Opening-Chigorin-Variation-2...c6"]
[UTCDate "2011.01.31"]
[UTCTime "19:37:52"]
[WhiteElo "1313"]
[BlackElo "1405"]
[TimeControl "600"]
[Termination "inthetrees won by resignation"]
[StartTime "19:37:52"]
[EndDate "2011.01.31"]
[EndTime "19:40:37"]
[Link "https://www.chess.com/game/live/93387701"]

1. d4 {[%clk 0:10:00]} 1... d5 {[%clk 0:10:00]} 2. Nc3 {[%clk 0:09:57.2]} 2... c6 {[%clk 0:09:57.9]} 3. Nf3 {[%clk 0:09:49.8]} 3... Bg4 {[%clk 0:09:54.9]} 4. e3 {[%clk 0:09:37.9]} 4... e6 {[%clk 0:09:44.3]} 5. Be2 {[%clk 0:09:36.8]} 5... Bb4 {[%clk 0:09:41.4]} 6. Ne5 {[%clk 0:09:34.2]} 6... Bxe2 {[%clk 0:09:15.8]} 7. Qxe2 {[%clk 0:09:28.5]} 7... Qf6 {[%clk 0:08:55.4]} 8. O-O {[%clk 0:09:25.5]} 8... Ne7 {[%clk 0:08:52.3]} 9. Ng4 {[%clk 0:09:23.2]} 9... Qg6 {[%clk 0:08:48.9]} 10. Ne5 {[%clk 0:09:20.7]} 10... Qf6 {[%clk 0:08:47.4]} 11. a3 {[%clk 0:09:17.4]} 11... Bd6 {[%clk 0:08:44.8]} 12. e4 {[%clk 0:09:12]} 12... Bxe5 {[%clk 0:08:41]} 13. dxe5 {[%clk 0:09:11.1]} 13... Qxe5 {[%clk 0:08:38.9]} 14. exd5 {[%clk 0:09:09.3]} 14... Qe3 {[%clk 0:08:13.1]} 1-0

[Event "Live Chess"]
[Site "Chess.com"]
[Date "2011.01.30"]
[Round "-"]
[White "rajee00a"]
[Black "hipposcottimus"]
[Result "0-1"]
[CurrentPosition "8/p3r2k/7p/4p3/5p1P/2pr4/Kq6/8 w - -"]
[Timezone "UTC"]
[ECO "C25"]
[ECOUrl "https://www.chess.com/openings/Vienna-Game-Max-Lange-Defense"]
[UTCDate "2011.01.30"]
[UTCTime "03:40:17"]
[WhiteElo "1750"]
[BlackElo "1638"]
[TimeControl "60"]
[Termination "hipposcottimus won by checkmate"]
[StartTime "03:40:17"]
[EndDate "2011.01.30"]
[EndTime "03:42:21"]
[Link "https://www.chess.com/game/live/92823511"]

1. e4 {[%clk 0:01:00]} 1... e5 {[%clk 0:01:00]} 2. Nc3 {[%clk 0:00:59.9]} 2... Nc6 {[%clk 0:00:58.9]} 3. Bb5 {[%clk 0:00:59.2]} 3... Nf6 {[%clk 0:00:57.9]} 4. Bxc6 {[%clk 0:00:57.8]} 4... dxc6 {[%clk 0:00:57.7]} 5. Nf3 {[%clk 0:00:57.4]} 5... Nxe4 {[%clk 0:00:56.5]} 6. Nxe4 {[%clk 0:00:56.1]} 6... f5 {[%clk 0:00:54]} 7. Nc3 {[%clk 0:00:55.3]} 7... Bd6 {[%clk 0:00:53.3]} 8. d3 {[%clk 0:00:54.1]} 8... O-O {[%clk 0:00:53]} 9. Bg5 {[%clk 0:00:53.2]} 9... Qe8 {[%clk 0:00:48.4]} 10. Qc1 {[%clk 0:00:51.9]} 10... f4 {[%clk 0:00:45.8]} 11. Qd2 {[%clk 0:00:49.1]} 11... h6 {[%clk 0:00:42.4]} 12. Bxh6 {[%clk 0:00:45.8]} 12... gxh6 {[%clk 0:00:41.4]} 13. h4 {[%clk 0:00:44.7]} 13... Kh7 {[%clk 0:00:40]} 14. O-O-O {[%clk 0:00:43.1]} 14... Bg4 {[%clk 0:00:37.5]} 15. Rde1 {[%clk 0:00:40.9]} 15... Bxf3 {[%clk 0:00:35.8]} 16. gxf3 {[%clk 0:00:39.8]} 16... Qg6 {[%clk 0:00:35.4]} 17. Reg1 {[%clk 0:00:37.7]} 17... Qe6 {[%clk 0:00:35.1]} 18. Rh2 {[%clk 0:00:36.4]} 18... Bb4 {[%clk 0:00:33.9]} 19. a3 {[%clk 0:00:34.8]} 19... Bxc3 {[%clk 0:00:33.1]} 20. Qxc3 {[%clk 0:00:34.2]} 20... Rad8 {[%clk 0:00:31.7]} 21. Re1 {[%clk 0:00:32.7]} 21... Rd4 {[%clk 0:00:29.9]} 22. Re2 {[%clk 0:00:29.5]} 22... c5 {[%clk 0:00:29.1]} 23. Rh1 {[%clk 0:00:28.6]} 23... b5 {[%clk 0:00:28.1]} 24. Rhe1 {[%clk 0:00:27.8]} 24... Re8 {[%clk 0:00:25.5]} 25. Rg1 {[%clk 0:00:25.6]} 25... b4 {[%clk 0:00:19.1]} 26. axb4 {[%clk 0:00:24.5]} 26... cxb4 {[%clk 0:00:17.5]} 27. Qxc7+ {[%clk 0:00:23.7]} 27... Re7 {[%clk 0:00:12.9]} 28. Qc8 {[%clk 0:00:21.4]} 28... Qxc8 {[%clk 0:00:11]} 29. Kd1 {[%clk 0:00:18]} 29... Qa6 {[%clk 0:00:10.3]} 30. Ke1 {[%clk 0:00:16.8]} 30... Qa1+ {[%clk 0:00:09.1]} 31. Kd2 {[%clk 0:00:16.4]} 31... Qxg1 {[%clk 0:00:08.1]} 32. Re1 {[%clk 0:00:15.9]} 32... Qxf2+ {[%clk 0:00:07]} 33. Re2 {[%clk 0:00:14.9]} 33... Qxf3 {[%clk 0:00:06.4]} 34. c3 {[%clk 0:00:14]} 34... Rxd3+ {[%clk 0:00:04.8]} 35. Kc1 {[%clk 0:00:12.6]} 35... bxc3 {[%clk 0:00:04.1]} 36. Kb1 {[%clk 0:00:12.5]} 36... Qxe2 {[%clk 0:00:03.4]} 37. Ka2 {[%clk 0:00:11.9]} 37... Qxb2# {[%clk 0:00:02.6]} 0-1

[Event "Live Chess"]
[Site "Chess.com"]
[Date "2011.01.30"]
[Round "-"]
[White "hipposcottimus"]
[Black "evenseasons"]
[Result "1-0"]
[CurrentPosition "2r1r3/Q4p2/kp6/1N1P4/P3P3/7P/1P5P/2R4K b - -"]
[Timezone "UTC"]
[ECO "B06"]
[ECOUrl "https://www.chess.com/openings/Modern-Defense-with-1-d4-2.c4-Bg7-3.e4-d6"]
[UTCDate "2011.01.30"]
[UTCTime "03:37:41"]
[WhiteElo "1626"]
[BlackElo "1585"]
[TimeControl "60"]
[Termination "hipposcottimus won by checkmate"]
[StartTime "03:37:41"]
[EndDate "2011.01.30"]
[EndTime "03:39:24"]
[Link "https://www.chess.com/game/live/92822961"]

1. e4 {[%clk 0:01:00]} 1... g6 {[%clk 0:01:00]} 2. d4 {[%clk 0:00:58]} 2... Bg7 {[%clk 0:00:59.6]} 3. c4 {[%clk 0:00:57.7]} 3... d6 {[%clk 0:00:59]} 4. Nc3 {[%clk 0:00:57.3]} 4... b6 {[%clk 0:00:58.6]} 5. d5 {[%clk 0:00:56.7]} 5... Bb7 {[%clk 0:00:58.3]} 6. f3 {[%clk 0:00:54.5]} 6... Nf6 {[%clk 0:00:57.8]} 7. Bd2 {[%clk 0:00:52.4]} 7... O-O {[%clk 0:00:57.4]} 8. Be2 {[%clk 0:00:52.1]} 8... e6 {[%clk 0:00:56.6]} 9. Nh3 {[%clk 0:00:51.8]} 9... e5 {[%clk 0:00:55.7]} 10. f4 {[%clk 0:00:50.5]} 10... c6 {[%clk 0:00:55.1]} 11. fxe5 {[%clk 0:00:49.4]} 11... dxe5 {[%clk 0:00:54.3]} 12. O-O {[%clk 0:00:47.9]} 12... cxd5 {[%clk 0:00:52.6]} 13. Bg5 {[%clk 0:00:47.4]} 13... h6 {[%clk 0:00:50.4]} 14. Bxf6 {[%clk 0:00:39.6]} 14... Qxf6 {[%clk 0:00:48]} 15. cxd5 {[%clk 0:00:39.3]} 15... Re8 {[%clk 0:00:45.5]} 16. Rxf6 {[%clk 0:00:38.3]} 16... Bxf6 {[%clk 0:00:44.5]} 17. Bg4 {[%clk 0:00:36.9]} 17... h5 {[%clk 0:00:42.8]} 18. Bf3 {[%clk 0:00:35.1]} 18... Bc8 {[%clk 0:00:40.3]} 19. Qa4 {[%clk 0:00:34.5]} 19... Bd7 {[%clk 0:00:37.8]} 20. Qb3 {[%clk 0:00:33.7]} 20... Bxh3 {[%clk 0:00:36.7]} 21. gxh3 {[%clk 0:00:31.9]} 21... Nd7 {[%clk 0:00:34.8]} 22. Qb5 {[%clk 0:00:31.2]} 22... g5 {[%clk 0:00:33.8]} 23. Qxd7 {[%clk 0:00:29.4]} 23... Rad8 {[%clk 0:00:31.8]} 24. Qf5 {[%clk 0:00:29]} 24... g4 {[%clk 0:00:30.8]} 25. Qxf6 {[%clk 0:00:27.8]} 25... gxf3 {[%clk 0:00:29.4]} 26. Qxf3 {[%clk 0:00:27.2]} 26... Kf8 {[%clk 0:00:28.7]} 27. Qxh5 {[%clk 0:00:26.5]} 27... Ke7 {[%clk 0:00:28.3]} 28. Kh1 {[%clk 0:00:26.1]} 28... Rg8 {[%clk 0:00:27.9]} 29. Qxe5+ {[%clk 0:00:25.6]} 29... Kd7 {[%clk 0:00:25.8]} 30. Nb5 {[%clk 0:00:24.2]} 30... Rge8 {[%clk 0:00:23.4]} 31. Qd6+ {[%clk 0:00:23.4]} 31... Kc8 {[%clk 0:00:20.7]} 32. Rc1+ {[%clk 0:00:23]} 32... Kb7 {[%clk 0:00:18.7]} 33. Qc7+ {[%clk 0:00:22.3]} 33... Ka6 {[%clk 0:00:18]} 34. a4 {[%clk 0:00:18.9]} 34... Rc8 {[%clk 0:00:16.8]} 35. Qxa7# {[%clk 0:00:18]} 1-0

[Event "Live Chess"]
[Site "Chess.com"]
[Date "2011.01.30"]
[Round "-"]
[White "evenseasons"]
[Black "hipposcottimus"]
[Result "0-1"]
[CurrentPosition "7k/Q5pp/2p5/P7/3P4/8/P4PPP/4r1K1 w - -"]
[Timezone "UTC"]
[ECO "C44"]
[ECOUrl "https://www.chess.com/openings/Ponziani-Opening-Jaenisch-Neumann-Gambit"]
[UTCDate "2011.01.30"]
[UTCTime "03:36:10"]
[WhiteElo "1592"]
[BlackElo "1619"]
[TimeControl "60"]
[Termination "hipposcottimus won by checkmate"]
[StartTime "03:36:10"]
[EndDate "2011.01.30"]
[EndTime "03:37:26"]
[Link "https://www.chess.com/game/live/92822664"]

1. e4 {[%clk 0:01:00]} 1... e5 {[%clk 0:01:00]} 2. Nf3 {[%clk 0:00:59.4]} 2... Nc6 {[%clk 0:00:59.6]} 3. Bc4 {[%clk 0:00:59.1]} 3... Nf6 {[%clk 0:00:59.2]} 4. c3 {[%clk 0:00:58.7]} 4... d5 {[%clk 0:00:57.3]} 5. exd5 {[%clk 0:00:57.1]} 5... Na5 {[%clk 0:00:56.2]} 6. Be2 {[%clk 0:00:52.6]} 6... e4 {[%clk 0:00:55.7]} 7. Nd4 {[%clk 0:00:51.2]} 7... Bc5 {[%clk 0:00:53]} 8. b4 {[%clk 0:00:50.3]} 8... Bxd4 {[%clk 0:00:51.5]} 9. cxd4 {[%clk 0:00:49.4]} 9... Nxd5 {[%clk 0:00:47.8]} 10. bxa5 {[%clk 0:00:47.9]} 10... O-O {[%clk 0:00:46.2]} 11. O-O {[%clk 0:00:45.7]} 11... f5 {[%clk 0:00:44.5]} 12. d3 {[%clk 0:00:44.9]} 12... c6 {[%clk 0:00:43.6]} 13. dxe4 {[%clk 0:00:43.8]} 13... fxe4 {[%clk 0:00:43.4]} 14. Bc4 {[%clk 0:00:43]} 14... Be6 {[%clk 0:00:41.5]} 15. Nc3 {[%clk 0:00:42.2]} 15... Qe7 {[%clk 0:00:39.2]} 16. Nxe4 {[%clk 0:00:41.2]} 16... Nf4 {[%clk 0:00:37.3]} 17. Bxf4 {[%clk 0:00:39.8]} 17... Rxf4 {[%clk 0:00:34.8]} 18. Bxe6+ {[%clk 0:00:36.2]} 18... Qxe6 {[%clk 0:00:34.4]} 19. Re1 {[%clk 0:00:35.5]} 19... Rxe4 {[%clk 0:00:32]} 20. Rxe4 {[%clk 0:00:33.2]} 20... Qxe4 {[%clk 0:00:30.8]} 21. Qb3+ {[%clk 0:00:32.7]} 21... Kh8 {[%clk 0:00:28.8]} 22. Qxb7 {[%clk 0:00:31.8]} 22... Re8 {[%clk 0:00:28.5]} 23. Qxa7 {[%clk 0:00:31.2]} 23... Qe1+ {[%clk 0:00:27.5]} 24. Rxe1 {[%clk 0:00:29.2]} 24... Rxe1# {[%clk 0:00:27.2]} 0-1

[Event "Live Chess"]
[Site "Chess.com"]
[Date "2011.01.30"]
[Round "-"]
[White "hipposcottimus"]
[Black "evenseasons"]
[Result "0-1"]
[CurrentPosition "6k1/p4ppp/2pb1nq1/5K2/8/2N1P3/Pr5P/2R2R2 w - -"]
[Timezone "UTC"]
[ECO "B01"]
[ECOUrl "https://www.chess.com/openings/Scandinavian-Defense-Modern-Icelandic-Palme-Gambit"]
[UTCDate "2011.01.30"]
[UTCTime "03:34:40"]
[WhiteElo "1611"]
[BlackElo "1600"]
[TimeControl "60"]
[Termination "evenseasons won by checkmate"]
[StartTime "03:34:40"]
[EndDate "2011.01.30"]
[EndTime "03:35:57"]
[Link "https://www.chess.com/game/live/92822312"]

1. e4 {[%clk 0:01:00]} 1... d5 {[%clk 0:01:00]} 2. exd5 {[%clk 0:00:58.4]} 2... Nf6 {[%clk 0:00:59.4]} 3. c4 {[%clk 0:00:56.9]} 3... e6 {[%clk 0:00:59]} 4. Nc3 {[%clk 0:00:56.3]} 4... exd5 {[%clk 0:00:57.8]} 5. cxd5 {[%clk 0:00:56.1]} 5... Bd6 {[%clk 0:00:57.1]} 6. Qe2+ {[%clk 0:00:55.8]} 6... Be7 {[%clk 0:00:53.9]} 7. Qb5+ {[%clk 0:00:55.2]} 7... c6 {[%clk 0:00:52.2]} 8. dxc6 {[%clk 0:00:54.5]} 8... bxc6 {[%clk 0:00:51.6]} 9. Qe5 {[%clk 0:00:53.3]} 9... O-O {[%clk 0:00:51.2]} 10. Bc4 {[%clk 0:00:50.9]} 10... Re8 {[%clk 0:00:50.9]} 11. Qf4 {[%clk 0:00:47.4]} 11... Bd6+ {[%clk 0:00:50.4]} 12. Qe3 {[%clk 0:00:43.7]} 12... Rxe3+ {[%clk 0:00:48.6]} 13. fxe3 {[%clk 0:00:43.5]} 13... Na6 {[%clk 0:00:47.9]} 14. Nf3 {[%clk 0:00:43.3]} 14... Nc5 {[%clk 0:00:47]} 15. Bd3 {[%clk 0:00:42.9]} 15... Nxd3+ {[%clk 0:00:45.1]} 16. Ke2 {[%clk 0:00:42.7]} 16... Nxc1+ {[%clk 0:00:43]} 17. Raxc1 {[%clk 0:00:41.1]} 17... Ba6+ {[%clk 0:00:42.7]} 18. d3 {[%clk 0:00:39.7]} 18... Rb8 {[%clk 0:00:42.4]} 19. Rhf1 {[%clk 0:00:39.1]} 19... Rxb2+ {[%clk 0:00:42]} 20. Nd2 {[%clk 0:00:37]} 20... Bxd3+ {[%clk 0:00:40.7]} 21. Kxd3 {[%clk 0:00:35.4]} 21... Ba3+ {[%clk 0:00:39.9]} 22. Ke2 {[%clk 0:00:34.5]} 22... Qxd2+ {[%clk 0:00:38.1]} 23. Kf3 {[%clk 0:00:32.2]} 23... Qxg2+ {[%clk 0:00:37]} 24. Kf4 {[%clk 0:00:30]} 24... Bd6+ {[%clk 0:00:35.9]} 25. Kf5 {[%clk 0:00:26]} 25... Qg6# {[%clk 0:00:29.5]} 0-1

[Event "Live Chess"]
[Site "Chess.com"]
[Date "2011.01.30"]
[Round "-"]
[White "evenseasons"]
[Black "hipposcottimus"]
[Result "1-0"]
[CurrentPosition "r5k1/8/8/5pN1/5P2/r1R3P1/2K5/8 b - -"]
[Timezone "UTC"]
[ECO "C55"]
[ECOUrl "https://www.chess.com/openings/Italian-Game-Two-Knights-Defense-4.O-O"]
[UTCDate "2011.01.30"]
[UTCTime "03:32:01"]
[WhiteElo "1591"]
[BlackElo "1620"]
[TimeControl "60"]
[Termination "evenseasons won on time"]
[StartTime "03:32:01"]
[EndDate "2011.01.30"]
[EndTime "03:34:20"]
[Link "https://www.chess.com/game/live/92821798"]

1. e4 {[%clk 0:01:00]} 1... e5 {[%clk 0:01:00]} 2. Nf3 {[%clk 0:00:59.3]} 2... Nc6 {[%clk 0:00:59.7]} 3. Bc4 {[%clk 0:00:58.8]} 3... Nf6 {[%clk 0:00:59.3]} 4. O-O {[%clk 0:00:58.1]} 4... d5 {[%clk 0:00:58.6]} 5. exd5 {[%clk 0:00:55.1]} 5... Nxd5 {[%clk 0:00:58.3]} 6. Bxd5 {[%clk 0:00:52.8]} 6... Qxd5 {[%clk 0:00:58]} 7. Nc3 {[%clk 0:00:52.3]} 7... Qe6 {[%clk 0:00:55.8]} 8. d4 {[%clk 0:00:51.9]} 8... Bd6 {[%clk 0:00:55.4]} 9. d5 {[%clk 0:00:50.1]} 9... Qf5 {[%clk 0:00:50.2]} 10. dxc6 {[%clk 0:00:49.3]} 10... bxc6 {[%clk 0:00:49.8]} 11. Re1 {[%clk 0:00:46.9]} 11... O-O {[%clk 0:00:49.2]} 12. Nxe5 {[%clk 0:00:46.2]} 12... Bxe5 {[%clk 0:00:47.6]} 13. Be3 {[%clk 0:00:44.5]} 13... Rb8 {[%clk 0:00:44.6]} 14. Bd4 {[%clk 0:00:43.8]} 14... Bxh2+ {[%clk 0:00:40.3]} 15. Kxh2 {[%clk 0:00:42.1]} 15... c5 {[%clk 0:00:36.5]} 16. Bxg7 {[%clk 0:00:40.7]} 16... Kxg7 {[%clk 0:00:34.9]} 17. Re3 {[%clk 0:00:39.9]} 17... Kh8 {[%clk 0:00:33.7]} 18. Rf3 {[%clk 0:00:38.8]} 18... Qh5+ {[%clk 0:00:32]} 19. Rh3 {[%clk 0:00:37.8]} 19... Qxd1 {[%clk 0:00:28.1]} 20. Rxd1 {[%clk 0:00:37.3]} 20... Bxh3 {[%clk 0:00:27.8]} 21. Kxh3 {[%clk 0:00:35.8]} 21... Rg8 {[%clk 0:00:27.5]} 22. Ne4 {[%clk 0:00:34.7]} 22... Rbe8 {[%clk 0:00:27.1]} 23. f3 {[%clk 0:00:31.7]} 23... f5 {[%clk 0:00:25.2]} 24. Rd7 {[%clk 0:00:30.8]} 24... Rgf8 {[%clk 0:00:23.7]} 25. Ng5 {[%clk 0:00:29.3]} 25... Kg8 {[%clk 0:00:18.3]} 26. Rxh7 {[%clk 0:00:28.1]} 26... Rf6 {[%clk 0:00:13.9]} 27. Rxc7 {[%clk 0:00:26.6]} 27... Rg6 {[%clk 0:00:13]} 28. f4 {[%clk 0:00:25]} 28... Rh6+ {[%clk 0:00:11.9]} 29. Kg3 {[%clk 0:00:23.1]} 29... Rf8 {[%clk 0:00:11.2]} 30. Rxa7 {[%clk 0:00:21.2]} 30... Rg6 {[%clk 0:00:10.5]} 31. Kf3 {[%clk 0:00:19.1]} 31... Rd6 {[%clk 0:00:08.3]} 32. g3 {[%clk 0:00:17.9]} 32... Rd2 {[%clk 0:00:07.8]} 33. Ke3 {[%clk 0:00:16.9]} 33... Rxc2 {[%clk 0:00:07.5]} 34. Rc7 {[%clk 0:00:14.1]} 34... Rxb2 {[%clk 0:00:06.7]} 35. a4 {[%clk 0:00:12.7]} 35... Ra2 {[%clk 0:00:05.9]} 36. Rxc5 {[%clk 0:00:11.8]} 36... Rxa4 {[%clk 0:00:05.3]} 37. Kd3 {[%clk 0:00:09.4]} 37... Ra3+ {[%clk 0:00:04.8]} 38. Rc3 {[%clk 0:00:08.4]} 38... Rd8+ {[%clk 0:00:04]} 39. Kc2 {[%clk 0:00:06.2]} 39... Ra2+ {[%clk 0:00:03.6]} 40. Kb3 {[%clk 0:00:05.1]} 40... Rda8 {[%clk 0:00:01.7]} 41. Kb4 {[%clk 0:00:03.7]} 41... R2a4+ {[%clk 0:00:00.9]} 42. Kb3 {[%clk 0:00:02.8]} 42... Ra3+ {[%clk 0:00:00.3]} 43. Kc2 {[%clk 0:00:02.1]} 1-0

[Event "Live Chess"]
[Site "Chess.com"]
[Date "2011.01.30"]
[Round "-"]
[White "hipposcottimus"]
[Black "Zelrome"]
[Result "1-0"]
[CurrentPosition "4kb2/p1p5/1p2Pp2/2p4Q/2Pq4/1P6/3N3P/2K5 b - -"]
[Timezone "UTC"]
[ECO "B00"]
[ECOUrl "https://www.chess.com/openings/Owens-Defense-2.d4"]
[UTCDate "2011.01.30"]
[UTCTime "03:29:22"]
[WhiteElo "1629"]
[BlackElo "1800"]
[TimeControl "60"]
[Termination "hipposcottimus won on time"]
[StartTime "03:29:22"]
[EndDate "2011.01.30"]
[EndTime "03:31:31"]
[Link "https://www.chess.com/game/live/92821255"]

1. e4 {[%clk 0:01:00]} 1... b6 {[%clk 0:01:00]} 2. d4 {[%clk 0:00:59.1]} 2... d6 {[%clk 0:00:59.7]} 3. d5 {[%clk 0:00:57.7]} 3... Bb7 {[%clk 0:00:59.1]} 4. c4 {[%clk 0:00:57.3]} 4... Qd7 {[%clk 0:00:58.7]} 5. f4 {[%clk 0:00:56.1]} 5... Na6 {[%clk 0:00:58.2]} 6. Nf3 {[%clk 0:00:55.4]} 6... Rd8 {[%clk 0:00:57.7]} 7. Bd3 {[%clk 0:00:54.8]} 7... Qc8 {[%clk 0:00:56.8]} 8. Nc3 {[%clk 0:00:54.5]} 8... Qa8 {[%clk 0:00:56.3]} 9. O-O {[%clk 0:00:54]} 9... Nc5 {[%clk 0:00:55.3]} 10. Be3 {[%clk 0:00:53.7]} 10... e6 {[%clk 0:00:53.8]} 11. Bxc5 {[%clk 0:00:52.5]} 11... dxc5 {[%clk 0:00:52.3]} 12. f5 {[%clk 0:00:50.5]} 12... Nf6 {[%clk 0:00:51.6]} 13. fxe6 {[%clk 0:00:48.6]} 13... fxe6 {[%clk 0:00:51.2]} 14. Qd2 {[%clk 0:00:46.3]} 14... Bd6 {[%clk 0:00:48.1]} 15. e5 {[%clk 0:00:44.3]} 15... Be7 {[%clk 0:00:44.3]} 16. exf6 {[%clk 0:00:43.5]} 16... gxf6 {[%clk 0:00:44]} 17. dxe6 {[%clk 0:00:42.9]} 17... Rg8 {[%clk 0:00:42.5]} 18. Qh6 {[%clk 0:00:40.8]} 18... Rxd3 {[%clk 0:00:39.1]} 19. Qxh7 {[%clk 0:00:38.6]} 19... Rxg2+ {[%clk 0:00:34.2]} 20. Kxg2 {[%clk 0:00:36.6]} 20... Bxf3+ {[%clk 0:00:33.9]} 21. Rxf3 {[%clk 0:00:35]} 21... Qxf3+ {[%clk 0:00:33.5]} 22. Kg1 {[%clk 0:00:29.7]} 22... Qg4+ {[%clk 0:00:32.6]} 23. Kf1 {[%clk 0:00:27.7]} 23... Rf3+ {[%clk 0:00:31]} 24. Ke1 {[%clk 0:00:25.5]} 24... Qg1+ {[%clk 0:00:26.2]} 25. Ke2 {[%clk 0:00:23.9]} 25... Qf2+ {[%clk 0:00:25]} 26. Kd1 {[%clk 0:00:23.5]} 26... Rd3+ {[%clk 0:00:21.8]} 27. Qxd3 {[%clk 0:00:17.6]} 27... Qg1+ {[%clk 0:00:18.6]} 28. Kc2 {[%clk 0:00:16.6]} 28... Qxa1 {[%clk 0:00:15.6]} 29. Nb1 {[%clk 0:00:16]} 29... Qxa2 {[%clk 0:00:13.8]} 30. Qh7 {[%clk 0:00:13.5]} 30... Qa4+ {[%clk 0:00:07.3]} 31. b3 {[%clk 0:00:12]} 31... Qa2+ {[%clk 0:00:05.5]} 32. Kc1 {[%clk 0:00:11.2]} 32... Qf2 {[%clk 0:00:04.7]} 33. Nd2 {[%clk 0:00:10.1]} 33... Qd4 {[%clk 0:00:02.6]} 34. Qh8+ {[%clk 0:00:09.5]} 34... Bf8 {[%clk 0:00:01.9]} 35. Qh5+ {[%clk 0:00:07.1]} 1-0

[Event "Live Chess"]
[Site "Chess.com"]
[Date "2011.01.30"]
[Round "-"]
[White "hipposcottimus"]
[Black "hlyrad"]
[Result "1-0"]
[CurrentPosition "8/5p1k/3p2pp/3P4/8/4rB2/6PP/1R4K1 b - -"]
[Timezone "UTC"]
[ECO "C50"]
[ECOUrl "https://www.chess.com/openings/Italian-Game-3...d6-4.d4"]
[UTCDate "2011.01.30"]
[UTCTime "03:26:58"]
[WhiteElo "1629"]
[BlackElo "1694"]
[TimeControl "60"]
[Termination "hipposcottimus won on time"]
[StartTime "03:26:58"]
[EndDate "2011.01.30"]
[EndTime "03:29:01"]
[Link "https://www.chess.com/game/live/92820765"]

1. e4 {[%clk 0:01:00]} 1... e5 {[%clk 0:01:00]} 2. Nf3 {[%clk 0:00:59.5]} 2... Nc6 {[%clk 0:00:59.6]} 3. Bc4 {[%clk 0:00:59.2]} 3... d6 {[%clk 0:00:58.8]} 4. d4 {[%clk 0:00:58.1]} 4... Be7 {[%clk 0:00:58.3]} 5. d5 {[%clk 0:00:57.1]} 5... Na5 {[%clk 0:00:57]} 6. Be2 {[%clk 0:00:56]} 6... b6 {[%clk 0:00:55.6]} 7. O-O {[%clk 0:00:55.7]} 7... Nb7 {[%clk 0:00:54.5]} 8. c4 {[%clk 0:00:55.4]} 8... Nf6 {[%clk 0:00:53.9]} 9. b4 {[%clk 0:00:54.8]} 9... Be6 {[%clk 0:00:52.8]} 10. Bd3 {[%clk 0:00:54.4]} 10... Bd7 {[%clk 0:00:52]} 11. Nc3 {[%clk 0:00:54]} 11... O-O {[%clk 0:00:51]} 12. Re1 {[%clk 0:00:53.7]} 12... Re8 {[%clk 0:00:50]} 13. Bg5 {[%clk 0:00:53.4]} 13... h6 {[%clk 0:00:48.8]} 14. Bxf6 {[%clk 0:00:53.1]} 14... Bxf6 {[%clk 0:00:48.1]} 15. Qd2 {[%clk 0:00:52.4]} 15... Bg4 {[%clk 0:00:47.1]} 16. Qe2 {[%clk 0:00:52]} 16... c5 {[%clk 0:00:44.8]} 17. Qe3 {[%clk 0:00:51.4]} 17... cxb4 {[%clk 0:00:42.9]} 18. Na4 {[%clk 0:00:49.7]} 18... a6 {[%clk 0:00:41.2]} 19. Nb2 {[%clk 0:00:49.3]} 19... b5 {[%clk 0:00:40.5]} 20. Be2 {[%clk 0:00:48.6]} 20... bxc4 {[%clk 0:00:39.6]} 21. Nxc4 {[%clk 0:00:46.5]} 21... Nc5 {[%clk 0:00:38.9]} 22. Qd2 {[%clk 0:00:42.1]} 22... Nxe4 {[%clk 0:00:37.3]} 23. Qxb4 {[%clk 0:00:40.2]} 23... Nc5 {[%clk 0:00:34]} 24. Qb6 {[%clk 0:00:34]} 24... Qxb6 {[%clk 0:00:31.1]} 25. Nxb6 {[%clk 0:00:33.8]} 25... Rab8 {[%clk 0:00:30.1]} 26. Nc4 {[%clk 0:00:32.9]} 26... Bxf3 {[%clk 0:00:28.4]} 27. Bxf3 {[%clk 0:00:31.6]} 27... Nd3 {[%clk 0:00:24.9]} 28. Ne3 {[%clk 0:00:31.3]} 28... Nxe1 {[%clk 0:00:23.8]} 29. Rxe1 {[%clk 0:00:31]} 29... e4 {[%clk 0:00:22.8]} 30. Be2 {[%clk 0:00:30.7]} 30... Rb2 {[%clk 0:00:20.7]} 31. Bxa6 {[%clk 0:00:29.1]} 31... Rxa2 {[%clk 0:00:19.5]} 32. Bc4 {[%clk 0:00:28.8]} 32... Rc2 {[%clk 0:00:18.3]} 33. Bb5 {[%clk 0:00:28.4]} 33... Rc5 {[%clk 0:00:16.5]} 34. Bxe8 {[%clk 0:00:26.4]} 34... Kh7 {[%clk 0:00:15.9]} 35. Ba4 {[%clk 0:00:23.5]} 35... Bc3 {[%clk 0:00:14.9]} 36. Rd1 {[%clk 0:00:21.2]} 36... Bd4 {[%clk 0:00:09.5]} 37. Bc2 {[%clk 0:00:20.1]} 37... Bxe3 {[%clk 0:00:06.6]} 38. Bxe4+ {[%clk 0:00:19.7]} 38... g6 {[%clk 0:00:04.6]} 39. fxe3 {[%clk 0:00:19.2]} 39... Rc3 {[%clk 0:00:01.9]} 40. Bf3 {[%clk 0:00:19]} 40... Rxe3 {[%clk 0:00:00.9]} 41. Rb1 {[%clk 0:00:16.8]} 1-0